bitfinex/quotes_SOLUSD_20260213
["timestamp","ask_amount","ask_price","bid_price","bid_amount"]
[1771021016224,3.87054434,84.61,84.571,1.55318235]
[1771021019931,0.16303236,84.613,84.581,1.55318235]
[1771021020633,11.81821144,84.616,84.581,1.55318235]
[1771021021523,103.5,84.617,84.581,1.55318235]
[1771021021727,50.88,84.618,84.581,1.55318235]
[1771021022131,51.04448361,84.618,84.581,1.55318235]
[1771021022328,0.16448361,84.617,84.581,1.55318235]
[1771021022730,0.16468788,84.609,84.581,1.55318235]
[1771021026036,29.5441922,84.619,84.581,1.55318235]
[1771021026037,0.16527658,84.619,84.581,1.55318235]
[1771021027538,0.16565924,84.618,84.581,1.55318235]
[1771021033818,0.16565924,84.618,84.59,3.87054434]
[1771021034034,0.16565924,84.618,84.591,1.62716731]
[1771021035627,3.87054434,84.62,84.591,1.62716731]
[1771021035828,4.03764878,84.62,84.591,1.62716731]
[1771021036224,0.16710444,84.62,84.591,1.62716731]
[1771021036425,0.16727327,84.619,84.591,1.62716731]
[1771021036625,0.16727327,84.615,84.591,1.62716731]
[1771021039140,0.16761523,84.621,84.591,1.62716731]
[1771021039735,0.16778228,84.658,84.611,1.62716731]
[1771021039955,51.20778228,84.658,84.611,1.62716731]
[1771021040257,0.16778228,84.653,84.62,3.87054434]
[1771021040548,0.16778228,84.653,84.621,1.62716731]
[1771021041320,4.07054434,84.65,84.621,1.62716731]
[1771021043747,0.2,84.65,84.621,1.62716731]
[1771021044337,3.87054434,84.64,84.621,1.62716731]
[1771021044645,3.87054434,84.64,84.615,1.62716731]
[1771021044646,0.16854501,84.639,84.615,1.62716731]
[1771021046129,3.87054434,84.64,84.615,1.62716731]
[1771021046442,0.16869512,84.644,84.615,1.62716731]
[1771021047033,0.2,84.65,84.621,1.62716731]
[1771021048644,4.07054434,84.67,84.631,1.62716731]
[1771021051057,0.2,84.67,84.631,1.62716731]
[1771021052038,0.2,84.67,84.616,11.81799742]
[1771021052039,0.2,84.67,84.641,1.49731522]
[1771021054434,0.2,84.67,84.612,4.61729252]
[1771021054435,0.2,84.67,84.651,1.49731522]
[1771021057334,0.2,84.69,84.661,1.49731522]
[1771021057646,0.2,84.69,84.656,1.579744]
[1771021057647,0.56782424,84.686,84.656,1.579744]
[1771021059066,0.56775137,84.669,84.631,1.579744]
[1771021059666,0.56771972,84.659,84.621,1.579744]
[1771021059843,0.56771972,84.649,84.621,1.579744]
[1771021060959,0.56770104,84.647,84.611,1.579744]
[1771021061631,3.87054434,84.64,84.611,1.579744]
[1771021062538,0.56767316,84.641,84.611,1.579744]
[1771021066468,0.56753016,84.659,84.621,1.579744]
[1771021066871,0.56753016,84.657,84.621,1.579744]
[1771021067057,3.86546068,84.65,84.621,1.579744]
[1771021067560,0.56749681,84.657,84.621,1.579744]
[1771021068344,3.86546068,84.65,84.621,1.579744]
[1771021072566,0.56738031,84.651,84.621,1.579744]
[1771021073472,0.56738031,84.657,84.621,1.579744]
[1771021078879,0.56724372,84.655,84.621,1.579744]
[1771021080979,0.56718409,84.649,84.621,1.579744]
[1771021082174,0.56715856,84.639,84.611,1.5840602]
[1771021082379,0.56715856,84.629,84.606,1.5840602]
[1771021082684,0.567145,84.639,84.606,1.5840602]
[1771021083566,0.56711908,84.619,84.573,1.5840602]
[1771021083779,0.56711908,84.619,84.581,1.5840602]
[1771021084980,3.86546068,84.64,84.601,1.5840602]
[1771021085185,0.56709646,84.635,84.601,1.5840602]
[1771021085682,0.56708406,84.629,84.601,1.5840602]
[1771021087877,3.86546068,84.62,84.601,1.5840602]
[1771021089968,4.43249019,84.62,84.601,1.5840602]
[1771021090365,0.56702559,84.609,84.586,1.5840602]
[1771021090570,0.56702559,84.615,84.586,1.5840602]
[1771021100769,0.5668895,84.621,84.591,1.5840602]
[1771021101271,3.86546068,84.62,84.591,1.5840602]
[1771021102768,15.6829979,84.62,84.591,1.5840602]
[1771021103395,16.24987792,84.62,84.591,1.5840602]
[1771021103581,0.56687561,84.619,84.591,1.5840602]
[1771021104788,0.56685484,84.629,84.591,1.5840602]
[1771021105396,3.86546068,84.62,84.591,1.5840602]
[1771021105584,0.56685484,84.622,84.591,1.5840602]
[1771021108416,3.86546068,84.63,84.591,1.5840602]
[1771021108586,0.5668471,84.635,84.601,1.5840602]
[1771021108903,3.86546068,84.63,84.601,1.5840602]
[1771021109100,4.43230778,84.63,84.601,1.5840602]
[1771021109304,0.5668471,84.633,84.601,1.5840602]
[1771021109504,3.86546068,84.63,84.601,1.5840602]
[1771021109802,4.43231449,84.63,84.601,1.5840602]
[1771021113091,0.56685381,84.63,84.601,1.5840602]
[1771021113406,11.81628047,84.629,84.601,1.5840602]
[1771021113605,12.38311899,84.629,84.601,1.5840602]
[1771021113913,0.56683852,84.619,84.59,1.53552582]
[1771021114486,0.56683586,84.609,84.59,1.53552582]
[1771021122011,0.56683842,84.622,84.591,1.54055934]
[1771021122216,3.86546068,84.62,84.591,1.54055934]
[1771021122410,0.56683842,84.619,84.591,1.54055934]
[1771021127712,0.56684099,84.609,84.591,1.54055934]
[1771021128114,11.81781654,84.618,84.576,1.54055934]
[1771021128115,0.56684099,84.599,84.576,1.54055934]
[1771021129118,0.56685038,84.589,84.557,1.54055934]
[1771021129323,3.86761588,84.59,84.557,1.54055934]
[1771021129324,0.56685038,84.585,84.557,1.54055934]
[1771021130418,3.86761588,84.58,84.557,1.54055934]
[1771021130917,0.56685038,84.585,84.557,1.54055934]
[1771021133330,3.86761588,84.64,84.561,1.54055934]
[1771021133331,0.56688414,84.598,84.561,1.54055934]
[1771021133536,0.56689355,84.589,84.561,1.54055934]
[1771021133836,0.56689355,84.579,84.551,1.54055934]
[1771021135525,3.86761588,84.57,84.551,1.54055934]
[1771021135828,0.56690498,84.569,84.551,1.54055934]
[1771021136833,0.5669118,84.574,84.551,1.54055934]
[1771021140619,0.56690908,84.569,84.546,1.54055934]
[1771021141712,0.56692504,84.574,84.546,1.54055934]
[1771021144232,0.56693137,84.579,84.546,1.54055934]
[1771021158342,0.56697136,84.559,84.534,1.6025381]
[1771021166451,0.56692107,84.569,84.534,1.6025381]
[1771021169048,0.56693376,84.559,84.534,1.6025381]
[1771021169546,11.8248037,84.568,84.53,3.96761588]
[1771021169547,0.56693323,84.549,84.53,0.1]
[1771021169941,41.38681297,84.568,84.53,0.1]
[1771021169942,0.56693323,84.539,84.53,0.1]
[1771021170763,0.56693323,84.539,84.517,1.6025381]
[1771021171132,0.56691104,84.538,84.512,1.53493001]
[1771021172951,0.56692235,84.529,84.512,1.53493001]
[1771021173655,0.56691847,84.534,84.515,1.79807791]
[1771021174043,0.56691847,84.529,84.515,0.2631479]
[1771021174656,0.56691847,84.529,84.505,1.53493001]
[1771021176349,50.46,84.552,84.505,1.53493001]
[1771021176350,0.30397944,84.549,84.505,1.53493001]
[1771021176558,0.30417095,84.539,84.505,1.53493001]
[1771021177252,0.30417095,84.524,84.5,1.63493001]
[1771021178059,0.30454402,84.529,84.5,1.63493001]
[1771021179660,0.30492199,84.539,84.501,1.52281862]
[1771021182449,0.30544572,84.545,84.511,1.52281862]
[1771021183465,0.30561926,84.579,84.541,1.52281862]
[1771021184953,0.3057865,84.577,84.541,1.52281862]
[1771021188143,0.3062785,84.575,84.541,1.52281862]
[1771021194259,0.30720962,84.573,84.541,1.52281862]
[1771021194479,0.3073595,84.569,84.541,1.52281862]
[1771021195382,0.3073595,84.569,84.527,16.5]
[1771021195383,0.30750795,84.595,84.551,1.52281862]
[1771021195681,103.5,84.65,84.581,1.52281862]
[1771021195682,6.47553876,84.634,84.581,1.52281862]
[1771021195855,0.30750795,84.63,84.601,1.52281862]
[1771021196163,0.30750795,84.618,84.585,1.52281862]
[1771021197775,0.30750795,84.618,84.56,3.87197761]
[1771021197776,0.30750795,84.618,84.591,1.52281862]
[1771021197985,0.2,84.62,84.601,1.52281862]
[1771021198478,0.30788973,84.619,84.6,3.87197761]
[1771021198661,0.30788973,84.619,84.595,1.52281862]
[1771021201160,0.30788973,84.619,84.571,16.5]
[1771021201161,0.2,84.62,84.601,1.49872377]
[1771021202682,0.2,84.62,84.611,1.49872377]
[1771021206480,50.42,84.652,84.611,1.49872377]
[1771021206481,0.30882656,84.645,84.611,1.49872377]
[1771021206681,0.30893738,84.654,84.631,1.49872377]
[1771021207180,0.30893738,84.661,84.631,1.49872377]
[1771021208759,0.30914944,84.659,84.607,16.5]
[1771021208960,0.30914944,84.659,84.6,3.87197761]
[1771021208961,0.30914944,84.639,84.601,1.49872377]
[1771021209688,4.18123945,84.63,84.601,1.49872377]
[1771021209873,4.18123945,84.63,84.559,61.9]
[1771021209874,0.30926184,84.629,84.591,1.49872377]
[1771021214174,0.30926184,84.629,84.6,3.87197761]
[1771021214472,0.30971699,84.639,84.611,1.49872377]
[1771021215490,0.30991179,84.629,84.601,1.49872377]
[1771021218094,0.31011275,84.637,84.601,1.49872377]
[1771021220894,11.81530318,84.636,84.601,1.49872377]
[1771021221103,0.31040229,84.629,84.601,1.49872377]
[1771021225201,0.31074565,84.627,84.601,1.49872377]
[1771021233518,50.62,84.644,84.611,1.58080078]
[1771021233893,0.31008147,84.643,84.611,1.58080078]
[1771021236014,0.30964989,84.649,84.611,1.58080078]
[1771021236218,103.80964989,84.648,84.611,1.58080078]
[1771021236427,51.04964989,84.648,84.621,1.58080078]
[1771021236799,0.30943988,84.653,84.621,1.58080078]
[1771021237703,50.76,84.656,84.621,1.58080078]
[1771021237903,51.06902523,84.656,84.621,1.58080078]
[1771021238108,0.30902523,84.655,84.621,1.58080078]
[1771021238821,4.61729252,84.676,84.63,3.87197761]
[1771021239005,0.3088197,84.669,84.631,1.55730897]
[1771021239198,0.3088197,84.669,84.641,1.55730897]
[1771021239820,50.76,84.673,84.641,1.55730897]
[1771021240027,0.30861501,84.676,84.641,1.55730897]
[1771021240827,11.80986123,84.675,84.641,1.55730897]
[1771021241027,0.30841109,84.669,84.641,1.55730897]
[1771021241208,0.30841109,84.659,84.636,1.35730897]
[1771021241517,0.50837257,84.649,84.62,3.87197761]
[1771021243129,0.50837257,84.649,84.621,1.55730897]
[1771021243428,3.87197761,84.66,84.621,1.55730897]
[1771021243622,0.50828995,84.668,84.631,1.55730897]
[1771021244208,0.50828995,84.668,84.641,1.55730897]
[1771021245423,0.50823628,84.674,84.641,1.55730897]
[1771021246613,103.5,84.679,84.651,1.55730897]
[1771021246930,50.96,84.688,84.651,1.55730897]
[1771021247110,0.50814321,84.689,84.651,1.55730897]
[1771021252610,0.2,84.69,84.661,1.55730897]
[1771021254732,0.2,84.69,84.671,1.55730897]
[1771021255928,0.50771562,84.689,84.651,1.55730897]
[1771021256710,11.80804836,84.688,84.651,1.55730897]
[1771021256913,0.50767945,84.679,84.651,1.55730897]
[1771021259829,0.2,84.69,84.613,61.9]
[1771021259830,0.2,84.69,84.661,1.55730897]
[1771021260225,4.56894489,84.69,84.661,1.55730897]
[1771021260511,0.50756573,84.689,84.661,1.55730897]
[1771021260907,0.2,84.69,84.661,1.55730897]
[1771021264436,0.50740271,84.689,84.661,1.55730897]
[1771021266940,0.2,84.69,84.661,1.55730897]
[1771021268639,0.50724492,84.688,84.661,1.55730897]
[1771021269139,0.50724492,84.679,84.651,1.52635534]
[1771021269737,0.50721403,84.669,84.641,1.52635534]
[1771021270734,0.50717659,84.667,84.641,1.52635534]
[1771021270934,0.50717659,84.659,84.631,1.52635534]
[1771021271239,0.50717659,84.649,84.611,1.52635534]
[1771021272821,3.86137916,84.65,84.611,1.52635534]
[1771021273432,3.86137916,84.66,84.621,1.52635534]
[1771021273639,0.50711526,84.665,84.631,1.52635534]
[1771021275423,0.50709801,84.674,84.641,1.52635534]
[1771021276136,0.50709801,84.674,84.622,11.81723541]
[1771021276137,0.50709801,84.674,84.65,3.86137916]
[1771021276337,0.50707672,84.685,84.651,1.52635534]
[1771021276529,63.02832723,84.686,84.651,1.52635534]
[1771021276530,0.50705961,84.679,84.651,1.52635534]
[1771021278442,0.50703335,84.686,84.651,1.52635534]
[1771021285149,0.50684656,84.669,84.641,1.52635534]
[1771021297961,0.5065977,84.668,84.636,1.48742671]
[1771021298263,0.5065977,84.659,84.636,1.48742671]
[1771021299342,51.16,84.683,84.613,16.5]
[1771021299343,0.50658705,84.674,84.641,1.48742671]
[1771021300763,0.50656481,84.672,84.641,1.48742671]
[1771021302746,3.86137916,84.67,84.641,1.48742671]
[1771021303064,0.50653532,84.669,84.641,1.48742671]
[1771021305070,0.5065118,84.667,84.641,1.48742671]
[1771021310964,0.50641289,84.672,84.641,1.48742671]
[1771021311167,12.31599911,84.677,84.641,1.48742671]
[1771021311468,0.50641289,84.676,84.641,1.48742671]
[1771021314552,0.5063593,84.674,84.641,1.48742671]
[1771021316072,0.5063593,84.674,84.631,1.48742671]
[1771021316073,0.50634687,84.669,84.631,1.48742671]
[1771021317463,0.70632671,84.712,84.662,1.48742671]
[1771021317660,4.06329846,84.73,84.681,1.48742671]
[1771021317661,0.70645607,84.709,84.681,1.48742671]
[1771021319054,0.70656536,84.714,84.681,1.48742671]
[1771021319573,0.70656536,84.714,84.691,1.48742671]
[1771021320165,0.9066761,84.71,84.691,1.48742671]
[1771021320361,0.7066761,84.709,84.691,1.48742671]
[1771021321676,0.34350896,84.709,84.691,1.48742671]
[1771021325578,0.2,84.71,84.691,1.48742671]
[1771021330474,0.2,84.71,84.701,1.6346374]
[1771021347396,0.35232447,84.725,84.701,1.6346374]
[1771021347998,0.2,84.74,84.711,1.6346374]
[1771021348299,0.2,84.74,84.721,1.6346374]
[1771021352283,0.3530773,84.739,84.721,1.6346374]
[1771021353197,0.3530773,84.739,84.685,1.50916837]
[1771021353405,3.86329846,84.72,84.685,1.50916837]
[1771021354587,11.80248337,84.728,84.701,1.64287115]
[1771021354899,52.04,84.732,84.701,1.64287115]
[1771021355102,11.80205591,84.731,84.701,1.64287115]
[1771021355484,11.80136449,84.736,84.701,1.64287115]
[1771021361613,52.06,84.739,84.701,1.64287115]
[1771021361809,3.86329846,84.73,84.701,1.64287115]
[1771021366818,52.4,84.736,84.64,3.86329846]
[1771021366819,3.86329846,84.72,84.666,1.64287115]
[1771021367002,3.86329846,84.72,84.665,11.81114392]
[1771021367003,3.86329846,84.72,84.681,1.64287115]
[1771021370001,103.5,84.735,84.701,1.64287115]
[1771021370314,4.06329846,84.74,84.701,1.64287115]
[1771021370622,0.2,84.74,84.711,1.64287115]
[1771021372319,11.80094171,84.739,84.711,1.64287115]
[1771021373817,3.85616368,84.73,84.705,1.64287115]
[1771021374321,11.8023345,84.729,84.705,1.64287115]
[1771021378022,3.85616368,84.73,84.705,1.64287115]
[1771021379933,11.8018108,84.733,84.705,1.64287115]
[1771021380116,3.85616368,84.73,84.705,1.64287115]
[1771021382223,11.8023345,84.729,84.705,1.64287115]
[1771021390539,53.18,84.732,84.705,1.64287115]
[1771021396036,11.80094171,84.739,84.705,1.64287115]
[1771021396239,11.80094171,84.739,84.7,3.85616368]
[1771021396240,53.44,84.738,84.711,1.64287115]
[1771021397442,53.5,84.737,84.711,1.64287115]
[1771021402522,53.76,84.737,84.711,1.64287115]
[1771021402843,11.80135951,84.736,84.711,1.64287115]
[1771021404541,53.76,84.737,84.711,1.64287115]
[1771021405728,53.76,84.737,84.692,16.5]
[1771021405729,11.80135951,84.736,84.693,1.64287115]
[1771021405937,3.85616368,84.73,84.693,1.64287115]
[1771021406340,53.92,84.729,84.693,1.64287115]
[1771021409550,11.80247379,84.728,84.693,1.64287115]
[1771021410351,3.85616368,84.72,84.693,1.64287115]
[1771021410551,3.85616368,84.72,84.681,1.64287115]
[1771021411162,3.85616368,84.7,84.676,1.64287115]
[1771021411369,3.85616368,84.69,84.661,1.64287115]
[1771021412430,11.80790893,84.689,84.661,1.64287115]
[1771021412850,3.85616368,84.68,84.656,1.64287115]
[1771021414642,53.96,84.695,84.661,1.64287115]
[1771021414834,3.85616368,84.69,84.661,1.64287115]
[1771021427173,15.6639391,84.69,84.661,1.64287115]
[1771021430860,15.669332,84.69,84.661,1.64287115]
[1771021431067,3.86155658,84.69,84.661,1.64287115]
[1771021432555,11.80790893,84.689,84.661,1.64287115]
[1771021432755,3.86155658,84.68,84.641,1.64287115]
[1771021433760,3.86155658,84.67,84.641,1.64287115]
[1771021434064,15.67078966,84.68,84.641,1.64287115]
[1771021435259,54.58,84.683,84.651,1.64287115]
[1771021435463,3.86155658,84.68,84.651,1.64287115]
[1771021437370,11.80930336,84.679,84.651,1.64287115]
[1771021441167,3.86155658,84.68,84.651,1.64287115]
[1771021443485,11.80672096,84.698,84.651,1.64287115]
[1771021444063,3.86155658,84.69,84.651,1.64287115]
[1771021444785,11.80672096,84.698,84.651,1.64287115]
[1771021445583,11.80672096,84.698,84.661,1.64287115]
[1771021446011,3.86155658,84.7,84.661,1.64287115]
[1771021446304,11.80604283,84.703,84.671,1.64287115]
[1771021450091,103.5,84.707,84.68,3.86155658]
[1771021450425,54.86,84.717,84.681,1.64287115]
[1771021451104,3.86155658,84.72,84.681,1.64287115]
[1771021451307,11.80306344,84.724,84.691,1.64287115]
[1771021452097,3.86155658,84.71,84.691,1.64287115]
[1771021454209,3.86155658,84.7,84.676,1.64287115]
[1771021454417,3.86155658,84.69,84.651,1.64287115]
[1771021460111,3.86155658,84.7,84.661,1.64287115]
[1771021463230,3.86155658,84.72,84.681,1.64287115]
[1771021467999,11.80318356,84.723,84.691,1.64287115]
[1771021469004,3.86155658,84.72,84.691,1.64287115]
[1771021470623,11.80318356,84.723,84.691,1.64287115]
[1771021472625,11.8023345,84.729,84.691,1.64287115]
[1771021475424,54.92,84.73,84.691,1.64287115]
[1771021475636,11.80040685,84.743,84.721,1.64287115]
[1771021476307,11.79987412,84.747,84.721,1.64287115]
[1771021476508,11.80034455,84.744,84.721,1.64287115]
[1771021477325,15.86238952,84.74,84.711,1.64287115]
[1771021477618,12.00083294,84.74,84.711,1.64287115]
[1771021479129,0.2,84.74,84.711,1.64287115]
[1771021481029,4.06155658,84.74,84.711,1.64287115]
[1771021484232,3.86155658,84.73,84.688,1.64287115]
[1771021484422,3.86155658,84.73,84.691,1.64287115]
[1771021486432,0.2,84.74,84.711,1.64287115]
[1771021490434,0.2,84.74,84.721,1.64287115]
[1771021494433,0.2,84.74,84.68,3.85537486]
[1771021494434,0.2,84.74,70.809,7.4168489]
[1771021494640,0.2,84.74,84.677,1.64287115]
[1771021494641,3.85537486,84.72,84.677,1.64287115]
[1771021494938,4.61729252,84.736,84.677,1.64287115]
[1771021494939,3.85537486,84.71,84.677,1.64287115]
[1771021495440,36.04,84.719,84.677,1.64287115]
[1771021495441,3.85537486,84.7,84.677,1.64287115]
[1771021496944,3.85537486,84.7,84.632,4.61729252]
[1771021496945,3.85537486,84.69,84.632,1.64287115]
[1771021497241,3.85537486,84.68,84.632,1.64287115]
[1771021497456,3.85537486,84.67,84.632,1.64287115]
[1771021500246,3.85537486,84.68,84.641,1.64287115]
[1771021500839,3.85537486,84.69,84.651,1.64287115]
[1771021501420,11.8072406,84.694,84.661,1.64287115]
[1771021501625,3.85537486,84.71,84.671,1.64287115]
[1771021501842,11.80408333,84.717,84.671,1.64287115]
[1771021502526,11.80408333,84.717,84.68,3.85537486]
[1771021502722,11.80408333,84.717,84.681,1.64287115]
[1771021505655,11.80330295,84.723,84.691,1.64287115]
[1771021505950,3.85537486,84.72,84.691,1.64287115]
[1771021507531,11.80330295,84.723,84.691,1.64287115]
[1771021508235,6.17045278,84.741,84.666,16.5]
[1771021508236,55.0,84.735,84.701,1.64287115]
[1771021509061,11.80140948,84.736,84.701,1.64287115]
[1771021509640,3.85537486,84.73,84.701,1.64287115]
[1771021510645,3.85537486,84.72,84.681,1.64287115]
[1771021510856,3.85537486,84.71,84.681,1.64287115]
[1771021511159,3.85537486,84.72,84.681,1.64287115]
[1771021511656,11.80372761,84.719,84.681,1.64287115]
[1771021519563,3.85537486,84.71,84.681,1.64287115]
[1771021524966,11.80372761,84.719,84.681,1.64287115]
[1771021526780,3.85537486,84.71,84.681,1.64287115]
[1771021528673,11.80512106,84.709,84.681,1.64287115]
[1771021555390,11.80512106,84.709,84.666,1.64287115]
[1771021555597,3.8596306,84.69,84.666,1.64287115]
[1771021555788,3.8596306,84.68,84.641,1.64287115]
[1771021556094,3.8596306,84.67,84.641,1.64287115]
[1771021559795,100.34352901,84.709,84.631,16.5]
[1771021559796,59.01226963,84.729,84.651,1.64287115]
[1771021559998,3.8596306,84.7,84.661,1.64287115]
[1771021564207,11.80651483,84.699,84.661,1.64287115]
[1771021566288,3.8596306,84.69,84.661,1.64287115]
[1771021570108,3.8596306,84.7,84.661,1.64287115]
[1771021571686,33.37218413,84.71,84.671,1.64287115]
[1771021571886,11.80442429,84.714,84.681,1.64287115]
[1771021577185,11.80372761,84.719,84.691,1.64287115]
[1771021579685,3.8596306,84.71,84.691,1.64287115]
[1771021579890,3.8596306,84.71,84.681,1.64287115]
[1771021580287,3.8596306,84.7,84.681,1.64287115]
[1771021581992,3.8596306,84.69,84.661,1.64287115]
[1771021584402,11.80790893,84.689,84.661,1.64287115]
[1771021586512,3.8596306,84.68,84.661,1.64287115]
[1771021588701,3.8596306,84.69,84.661,1.64287115]
[1771021591713,11.80790893,84.689,84.661,1.64287115]
[1771021593124,3.8596306,84.68,84.657,1.64287115]
[1771021594308,41.32768127,84.689,84.657,1.64287115]
[1771021594309,3.8596306,84.67,84.657,1.64287115]
[1771021594618,11.80804836,84.688,84.657,1.64287115]
[1771021594803,3.8596306,84.67,84.657,1.64287115]
[1771021596318,11.80955111,84.678,84.657,1.64287115]
[1771021596522,11.80804836,84.688,84.661,1.64287115]
[1771021597415,11.80673775,84.698,84.661,1.64287115]
[1771021599107,11.8021952,84.73,84.681,1.64287115]
[1771021599301,4.61729252,84.719,84.681,1.64287115]
[1771021600223,3.8596306,84.71,84.681,1.64287115]
[1771021601125,11.80512106,84.709,84.681,1.64287115]
[1771021604125,3.8596306,84.71,84.681,1.64287115]
[1771021604507,11.80386694,84.718,84.681,1.64287115]
[1771021605312,3.8596306,84.71,84.681,1.64287115]
[1771021606310,11.80512106,84.709,84.681,1.64287115]
[1771021609532,3.8596306,84.72,84.681,1.64287115]
[1771021609703,3.8596306,84.73,84.691,1.64287115]
[1771021610933,41.3062207,84.733,84.691,1.64287115]
[1771021611137,11.8023345,84.729,84.691,1.64287115]
[1771021613030,3.85793495,84.73,84.691,1.64287115]
[1771021614012,11.8023345,84.729,84.691,1.64287115]
[1771021617341,3.85793495,84.72,84.691,1.64287115]
[1771021621033,11.8027524,84.726,84.691,1.64287115]
[1771021630834,3.85793495,84.72,84.691,1.64287115]
[1771021631848,11.8027524,84.726,84.691,1.64287115]
[1771021642253,11.80372761,84.719,84.691,1.64287115]
[1771021642445,11.80372761,84.719,84.681,1.64287115]
[1771021644261,11.8023345,84.729,84.681,1.64287115]
[1771021644762,41.30817075,84.729,84.681,1.64287115]
[1771021646566,11.8023345,84.729,84.691,1.64287115]
[1771021647574,11.80122024,84.737,84.691,1.64287115]
[1771021647752,3.85793495,84.73,84.691,1.64287115]
[1771021649966,11.8023345,84.729,84.691,1.64287115]
[1771021653170,11.80122024,84.737,84.701,1.64287115]
[1771021653555,3.85793495,84.73,84.701,1.64287115]
[1771021654375,3.85793495,84.73,84.68,3.85793495]
[1771021654376,11.80122024,84.737,84.711,1.64287115]
[1771021661076,11.80094171,84.739,84.711,1.64287115]
[1771021675884,0.2,84.74,84.711,1.64287115]
[1771021676069,11.80094171,84.739,84.711,1.64287115]
[1771021676782,0.2,84.74,84.72,3.85669091]
[1771021676975,0.2,84.74,84.721,1.64287115]
[1771021680385,11.79852672,84.757,84.73,3.85669091]
[1771021680576,0.2,84.76,84.731,1.54287115]
[1771021708101,0.2,84.76,84.741,1.54287115]
[1771021718519,0.2,84.78,84.751,1.54287115]
[1771021719529,11.79537385,84.779,84.751,1.54287115]
[1771021725619,11.79537385,84.779,84.746,1.54287115]
[1771021730831,11.79537385,84.779,84.751,1.54287115]
[1771021731627,0.2,84.78,84.761,1.54287115]
[1771021737431,0.2,84.78,84.77,2.53e-06]
[1771021737637,0.2,84.78,84.76,3.85213869]
[1771021739451,0.2,84.78,84.761,1.35198092]
[1771021741437,1.30875131,84.794,84.762,1.41400149]
[1771021741648,1.30875131,84.794,84.771,1.41400149]
[1771021741958,1.38530361,84.799,84.77,3.85213869]
[1771021743833,1.38530361,84.799,84.771,1.41400149]
[1771021749545,1.38530361,84.799,84.78,3.85213869]
[1771021749756,1.38530361,84.799,84.781,1.41400149]
[1771021750856,0.1,84.82,84.801,1.41400149]
[1771021751158,0.1,84.82,84.808,1.41400149]
[1771021751466,1.48530361,84.82,84.808,1.41400149]
[1771021751641,1.38530361,84.818,84.755,1.41400149]
[1771021751842,1.38530361,84.818,84.72,3.85213869]
[1771021751843,1.38530361,84.799,84.761,1.41400149]
[1771021755055,1.38530361,84.799,84.763,1.41400149]
[1771021759778,1.38530361,84.799,84.771,1.41400149]
[1771021761655,1.38530361,84.799,84.762,16.48]
[1771021761656,1.38530361,84.789,84.766,1.41400149]
[1771021768073,1.38530361,84.787,84.766,1.41400149]
[1771021768281,1.38530361,84.787,84.762,16.48]
[1771021768282,1.38530361,84.787,84.763,1.41400149]
[1771021784091,1.38530361,84.787,84.762,16.48]
[1771021785292,1.38530361,84.787,84.762,17.88820398]
[1771021785473,1.38530361,84.787,84.763,1.40820398]
[1771021791299,1.38530361,84.787,84.762,16.48]
[1771021793794,1.38530361,84.787,84.714,61.9]
[1771021793795,3.85213869,84.77,84.741,1.42177592]
[1771021793993,3.85213869,84.77,84.747,17.90177592]
[1771021794195,41.28040005,84.786,84.747,17.90177592]
[1771021794394,3.85213869,84.78,84.747,16.48]
[1771021794600,3.85213869,84.78,84.748,1.42177592]
[1771021795098,3.85364596,84.78,84.748,1.42177592]
[1771021798380,15.6489555,84.78,84.748,1.42177592]
[1771021800005,3.85364596,84.77,84.747,16.48]
[1771021800603,3.85364596,84.76,84.731,16.48]
[1771021800797,3.85364596,84.76,84.732,1.42177592]
[1771021801906,56.62,84.776,84.721,1.42177592]
[1771021801907,3.85364596,84.75,84.721,1.42177592]
[1771021802110,3.85364596,84.75,84.717,1.42177592]
[1771021802702,3.85364596,84.74,84.717,1.42177592]
[1771021803502,3.85364596,84.73,84.706,1.42177592]
[1771021803806,3.85364596,84.72,84.705,16.48]
[1771021804107,3.85364596,84.72,84.698,1.42177592]
[1771021804407,3.85364596,84.73,84.698,1.42177592]
[1771021804808,3.85364596,84.72,84.698,1.42177592]
[1771021805804,3.85364596,84.73,84.698,1.42177592]
[1771021805988,4.61729252,84.758,84.69,20.33364596]
[1771021805989,3.85364596,84.74,84.701,1.42177592]
[1771021809616,0.02076904,84.739,84.701,1.42177592]
[1771021810314,3.85364596,84.74,84.701,1.42177592]
[1771021810510,0.02076904,84.739,84.701,1.42177592]
[1771021811598,3.87661825,84.73,84.701,1.42177592]
[1771021811915,0.02297229,84.729,84.701,1.42177592]
[1771021813193,0.02405229,84.719,84.701,1.42177592]
[1771021813795,3.85364596,84.72,84.701,1.42177592]
[1771021815295,56.54,84.745,84.701,1.42177592]
[1771021815296,0.02618286,84.736,84.701,1.42177592]
[1771021817709,3.88293516,84.74,84.701,1.42177592]
[1771021817908,0.0292892,84.739,84.701,1.42177592]
[1771021819021,0.03030083,84.749,84.711,1.42177592]
[1771021819201,3.85364596,84.75,84.711,1.42177592]